fUSD/lending_fUSD_20251103
["ID","MTS","AMOUNT","RATE_DAILY","PERIOD"]
[392989504,1762200641505,-3420.0,0.00032471,2]
[392989505,1762200641514,-825.56,0.00032471,2]
[392989506,1762200641524,-607.0,0.00032471,2]
[392989507,1762200641533,-1594.0,0.00032471,2]
[392989508,1762200641543,-1314.0,0.00032471,2]
[392989509,1762200641552,-1272.0,0.00032471,2]
[392989510,1762200641561,-819.0,0.00032471,2]
[392989511,1762200641570,-1000.0,0.00033165,2]
[392989512,1762200641580,-166.66,0.00033226,2]
[392989513,1762200641589,-153.17574389,0.00033337,7]
[392989514,1762200641598,-703.0,0.00033755,2]
[392989515,1762200641607,-703.0,0.0003376,7]
[392989516,1762200641616,-1316.0,0.00033869,2]
[392989517,1762200641625,-703.0,0.00034382,2]
[392989518,1762200641634,-1000.0,0.00034385,2]
[392989519,1762200641643,-307.0,0.00034509,120]
[392989520,1762200641651,-307.0,0.00034708,7]
[392989521,1762200641661,-450.0,0.00034729,7]
[392989522,1762200641670,-300.0,0.00034729,7]
[392989523,1762200641679,-307.0,0.00034756,2]
[392989524,1762200641688,-2000.0,0.000356,2]
[392989525,1762200641699,-307.0,0.00035688,2]
[392989526,1762200641708,-459.0,0.00035876,2]
[392989527,1762200641717,-1000.0,0.000359,7]
[392989528,1762200641727,-307.0,0.00035902,2]
[392989529,1762200641736,-195.66745782,0.0003595,2]
[392989530,1762200641745,-610.0,0.00036004,2]
[392989531,1762200641755,-300.0,0.00036004,2]
[392989532,1762200641764,-1962.03,0.00036004,2]
[392989533,1762200641773,-2449.37,0.00036004,120]
[392989534,1762200641783,-1500.0,0.00036004,120]
[392989535,1762200641793,-146241.77,0.00036004,2]
[392989536,1762200641804,-200.0,0.00036004,2]
[392989537,1762200641813,-25011.26,0.00036004,2]
[392989538,1762200641822,-518.51043796,0.0003605,30]
[392989539,1762200641832,-500.0,0.00036073,5]
[392989540,1762200641841,-500.0,0.00036073,5]
[392989541,1762200641850,-500.0,0.00036073,5]
[392989542,1762200641859,-195.6674578,0.00036092,2]
[392989543,1762200641870,-460.0,0.00036117,7]
[392989544,1762200641879,-308.6072616,0.00036125,2]
[392989545,1762200641889,-202.88,0.00036129,7]
[392989546,1762200641898,-505.67,0.00036129,7]
[392989547,1762200641907,-195.6674578,0.00036235,2]
[392989548,1762200641918,-4330.59,0.00036292,2]
[392989549,1762200641927,-1000.0,0.000363,7]
[392989550,1762200641936,-195.6674578,0.00036377,2]
[392989551,1762200641945,-1104.57,0.0003648,6]
[392989552,1762200641955,-300.0,0.00036511,79]
[392989553,1762200641964,-195.6674578,0.0003652,2]
[392989554,1762200641973,-1000.0,0.0003656,7]
[392989555,1762200641982,-187.73720218,0.00036621,5]
[392989556,1762200641991,-4958.0389316,0.0003665,4]
[392989557,1762200642002,-4093.98032,0.0003666,2]
[392989558,1762200642011,-195.6674578,0.00036662,2]
[392989559,1762200642020,-1000.0,0.000367,7]
[392989560,1762200642028,-200.0,0.00036752,10]
[392989561,1762200642038,-200.0,0.00036759,10]
[392989562,1762200642047,-195.6674578,0.00036805,2]
[392989563,1762200642055,-4958.0389316,0.00036806,4]
[392989564,1762200642064,-175.31166,0.00036815,30]
[392989565,1762200642073,-8221.63271543,0.00036816,2]
[392989566,1762200642082,-161.65584962,0.00036818,9]
[392989567,1762200642092,-166.9951453,0.00036826,2]
[392989568,1762200642101,-8221.63271535,0.00036831,2]
[392989569,1762200642111,-4958.0389316,0.00036835,4]
[392989570,1762200642120,-29748.2335896,0.00036837,4]
[392989571,1762200642129,-8221.63271535,0.00036845,2]
[392989572,1762200642138,-500.0,0.00036846,120]
[392989573,1762200642147,-53263.11707131,0.00036847,7]
[392989574,1762200642156,-8221.63271535,0.0003686,2]
[392989575,1762200642165,-4958.0389316,0.00036864,4]
[392989576,1762200642175,-500.0,0.00036873,5]
[392989577,1762200642185,-500.0,0.00036873,5]
[392989578,1762200642194,-495.05307951,0.00036873,2]
[392989579,1762200642203,-500.0,0.00036873,5]
[392989580,1762200642212,-500.47716849,0.00036873,5]
[392989581,1762200642221,-203.26715863,0.00036873,5]
[392989582,1762200642231,-500.0,0.00036873,5]
[392989583,1762200642240,-8221.63271535,0.00036874,2]
[392989584,1762200642249,-460.0,0.00036874,2]
[392989585,1762200642258,-4958.0389316,0.00036879,4]
[392989586,1762200642267,-150.0,0.0003688,7]
[392989587,1762200642276,-953.3,0.00036885,2]
[392989588,1762200642286,-584.3722,0.00036888,7]
[392989589,1762200642295,-8221.63271535,0.00036889,2]
[392989590,1762200642304,-4958.0389316,0.00036893,4]
[392989591,1762200642313,-14874.1167948,0.00036898,4]
[392989592,1762200642322,-8221.63271535,0.00036903,2]
[392989593,1762200642332,-4958.0389316,0.00036905,4]
[392989594,1762200642341,-143783.129016,0.00036906,4]
[392989595,1762200642351,-86357.354928,0.00036906,4]
[392989596,1762200642359,-4958.0389316,0.00036908,4]
[392989597,1762200642375,-5079.84440753,0.00036908,4]
[392989598,1762200642385,-1425.0,0.0003691,2]
[392989599,1762200642394,-150.59,0.00036912,2]
[392989600,1762200642404,-4958.0389316,0.00036915,4]
[392989601,1762200642414,-5079.84440753,0.00036915,4]
[392989602,1762200642423,-170.0,0.00036915,30]
[392989603,1762200642432,-500.0,0.00036915,120]
[392989604,1762200642442,-500.0,0.00036915,120]
[392989605,1762200642451,-500.0,0.00036915,120]
[392989606,1762200642460,-526.65,0.00036915,7]
[392989607,1762200642470,-525.35060905,0.00036915,120]
[392989608,1762200642481,-500.0,0.00036915,120]
[392989609,1762200642491,-550.67283435,0.00036915,30]
[392989610,1762200642500,-500.0,0.00036915,120]
[392989611,1762200642510,-500.0,0.00036915,120]
[392989612,1762200642520,-500.0,0.00036915,2]
[392989613,1762200642529,-500.0,0.00036915,2]
[392989614,1762200642539,-500.0,0.00036915,120]
[392989615,1762200642548,-64454.5061108,0.00036916,4]
[392989616,1762200642558,-208273.620709,0.00036916,4]
[392989618,1762200642568,-152.00852263,0.00036916,2]
[392989619,1762200642578,-8221.63271535,0.00036918,2]
[392989620,1762200642588,-5079.84440753,0.00036922,4]
[392989621,1762200642598,-1000.0,0.00036925,120]
[392989622,1762200642607,-500.0,0.00036925,120]
[392989623,1762200642616,-500.0,0.00036925,120]
[392989624,1762200642625,-500.0,0.00036925,120]
[392989625,1762200642634,-500.0,0.00036925,120]
[392989626,1762200642644,-500.0,0.00036925,120]
[392989627,1762200642653,-507.3491352,0.00036925,120]
[392989628,1762200642662,-526.65,0.00036925,7]
[392989629,1762200642672,-526.65,0.00036925,7]
[392989631,1762200642681,-500.0,0.00036925,120]
[392989632,1762200642690,-500.0,0.00036925,120]
[392989635,1762200642700,-500.0,0.00036925,2]
[392989636,1762200642710,-500.0,0.00036925,2]
[392989637,1762200642719,-500.0,0.00036925,120]
[392989638,1762200642732,-500.0,0.00036925,2]
[392989639,1762200642741,-500.0,0.00036925,120]
[392989640,1762200642750,-420000.0,0.00036926,2]
[392989641,1762200642760,-5000.0,0.00036926,5]
[392989642,1762200642769,-500.0,0.00036932,120]
[392989643,1762200642779,-8221.63271535,0.00036932,2]
[392989644,1762200642789,-500.0,0.00036936,2]
[392989645,1762200642799,-166.9951453,0.00036947,2]
[392989646,1762200642809,-8221.63271535,0.00036947,2]
[392989647,1762200642819,-161.65584961,0.00036947,10]
[392989648,1762200642828,-195.6674578,0.00036947,2]
[392989649,1762200642838,-290.60368652,0.00036947,7]
[392989650,1762200642848,-1923.6927891,0.00036947,2]
[392989651,1762200642857,-10724.66949039,0.00036947,2]
[392989652,1762200642866,-233.00074518,0.00036947,2]
[392989653,1762200642876,-735.16,0.00036959,2]
[392989654,1762200642885,-500.0,0.00036973,5]
[392989655,1762200642895,-2005.0,0.00036986,120]
[392989656,1762200642904,-1364.0,0.00036986,120]
[392989657,1762200642914,-151.90915939,0.00036987,30]
[392989658,1762200642923,-150.34146439,0.00036987,30]
[392989659,1762200642932,-205.56828253,0.00036987,30]
[392989660,1762200642942,-537.0,0.00036987,30]
[392989661,1762200642951,-150.79851215,0.00036987,30]
[392989662,1762200642960,-500.0,0.00036987,60]
[392989663,1762200642970,-500.0,0.00036987,30]
[392989664,1762200642980,-150.0,0.00036987,30]
[392989665,1762200642989,-150.0,0.00036987,120]
[392989666,1762200642999,-500.0,0.00036987,2]
[392989667,1762200643008,-735.0,0.00036987,30]
[392989668,1762200643018,-500.0,0.00036987,30]
[392989669,1762200643028,-500.0,0.00036987,30]
[392989670,1762200643036,-150.0,0.00036987,30]
[392989671,1762200643046,-500.0,0.00036987,30]
[392989673,1762200643055,-150.0,0.00036987,30]
[392989674,1762200643064,-500.0,0.00036987,30]
[392989676,1762200643074,-500.0,0.00036987,2]
[392989678,1762200643084,-849.0,0.00036987,30]
[392989679,1762200643093,-150.0,0.00036987,30]
[392989680,1762200643103,-150.0,0.00036987,2]
[392989681,1762200643112,-500.0,0.00036987,30]
[392989682,1762200643121,-500.0,0.00036987,30]
[392989683,1762200643130,-150.0,0.00036987,2]
[392989684,1762200643139,-150.0,0.00036987,30]
[392989685,1762200643148,-150.0,0.00036987,30]
[392989686,1762200643158,-150.0,0.00036987,30]
[392989687,1762200643167,-500.0,0.00036987,30]
[392989688,1762200643177,-500.0,0.00036987,30]
[392989689,1762200643186,-557.72088814,0.00036998,2]
[392989690,1762200643195,-150.0,0.00037,60]
[392989691,1762200643206,-150.0,0.00037,2]
[392989692,1762200643215,-235.05,0.00037,2]
[392989693,1762200643226,-467.4446062,0.00037,120]
[392989695,1762200643390,-500.0,0.00037007,120]
[392989696,1762200643400,-526.65,0.00037007,7]
[392989697,1762200643411,-526.65,0.00037007,7]
[392989698,1762200643420,-500.0,0.00037007,120]
[392989699,1762200643430,-500.0,0.00037007,120]
[392989700,1762200643439,-999.0,0.00037007,120]
[392989701,1762200643453,-175.31166,0.00037015,30]
[392989702,1762200643463,-171.0,0.00037015,30]
[392989703,1762200643473,-234.0,0.00037015,30]
[392989704,1762200643484,-151.0,0.00037015,14]
[392989705,1762200643494,-500.0,0.00037017,120]
[392989706,1762200643503,-183.54105798,0.00037017,120]
[392989707,1762200643513,-526.65,0.00037017,7]
[392989708,1762200643523,-526.65,0.00037017,7]
[392989709,1762200643533,-500.0,0.00037017,120]
[392989710,1762200643542,-500.0,0.00037017,120]
[392989711,1762200643552,-31068.9431351,0.00037018,2]
[392989712,1762200643561,-265.39843377,0.00037018,2]
[392989713,1762200643571,-150.0,0.00037018,2]
[392989714,1762200643580,-150.0,0.00037018,2]
[392989715,1762200643589,-225.46366359,0.00037018,2]
[392989716,1762200643598,-150.0,0.00037018,2]
[392989717,1762200643608,-433534.4030595,0.00037018,2]
[392989718,1762200643617,-150.0,0.00037018,2]
[392989719,1762200643627,-150.0,0.00037018,2]
[392989720,1762200643636,-150.0,0.00037018,2]
[392989721,1762200643646,-154.44839244,0.00037018,2]
[392989722,1762200643655,-153.1227138,0.00037018,2]
[392989723,1762200643664,-151.85156993,0.00037018,2]
[392989724,1762200643674,-150.0,0.00037018,2]
[392989725,1762200643683,-215.35327944,0.00037018,2]
[392989726,1762200643693,-14558.4850312,0.00037018,2]
[392989727,1762200643703,-209.10804559,0.0003702,7]
[392989728,1762200643712,-500.0,0.0003702,7]
[392989729,1762200643723,-526.65,0.00037025,7]
[392989730,1762200643735,-526.65,0.00037025,7]
[392989731,1762200643744,-150.0,0.00037025,20]
[392989732,1762200643754,-500.0,0.00037025,120]
[392989733,1762200643764,-200.0,0.00037026,2]
[392989734,1762200643773,-151.0,0.00037026,31]
[392989735,1762200643783,-151.0,0.00037026,31]
[392989736,1762200643793,-200.0,0.00037026,2]
[392989737,1762200643803,-38241.85175927,0.00037026,2]
[392989738,1762200643819,-826.60727248,0.00037026,2]
[392989739,1762200643856,-28208.83006317,0.00037026,2]
[392989740,1762200643867,-67277.28909492,0.00037026,2]
[392989741,1762200643876,-67277.28909492,0.00037026,2]
[392989742,1762200643886,-67277.28909492,0.00037026,2]
[392989743,1762200643895,-67277.28909492,0.00037026,2]
[392989744,1762200643905,-429.82910607,0.00037026,2]
[392989745,1762200643915,-429.82910607,0.00037026,2]
[392989746,1762200643925,-3407.6290959,0.00037027,2]
[392989747,1762200643935,-1000.0,0.00037029,30]
[392989748,1762200643944,-1000.0,0.00037037,7]
[392989749,1762200643953,-554.37412243,0.00037037,7]
[392989750,1762200643963,-152.00852263,0.00037037,2]
[392989751,1762200643972,-153.0,0.00037041,90]
[392989752,1762200643982,-153.0,0.00037041,90]
[392989753,1762200643992,-153.0,0.00037041,90]
[392989754,1762200644002,-151.0,0.00037044,14]
[392989755,1762200644012,-526.65,0.00037046,7]
[392989756,1762200644022,-526.65,0.00037046,7]
[392989757,1762200644031,-526.65,0.00037046,7]
[392989758,1762200644040,-526.65,0.00037046,7]
[392989759,1762200644049,-526.65,0.00037046,7]
[392989760,1762200644058,-526.65,0.00037046,7]
[392989761,1762200644067,-526.65,0.00037046,7]
[392989762,1762200644076,-526.65,0.00037046,7]
[392989763,1762200644085,-526.65,0.00037046,7]
[392989764,1762200644094,-526.65,0.00037046,7]
[392989765,1762200644103,-526.65,0.00037046,7]
[392989766,1762200644112,-526.65,0.00037046,7]
[392989767,1762200644120,-526.65,0.00037046,7]
[392989768,1762200644130,-526.65,0.00037046,7]
[392989769,1762200644139,-526.79425089,0.00037046,7]
[392989770,1762200644148,-500.0,0.00037046,120]
[392989771,1762200644159,-500.0,0.00037046,120]
[392989772,1762200644168,-500.0,0.00037046,120]
[392989773,1762200644178,-500.0,0.00037046,120]
[392989774,1762200644188,-506.77316277,0.00037046,120]
[392989775,1762200644197,-300.0,0.00037046,10]
[392989776,1762200644206,-666.0,0.00037046,10]
[392989777,1762200644215,-271.75720946,0.00037046,10]
[392989778,1762200644224,-666.0,0.00037046,10]
[392989779,1762200644235,-666.0,0.00037046,10]
[392989780,1762200644244,-153.0,0.00037047,90]
[392989781,1762200644253,-184.04727785,0.00037047,31]
[392989782,1762200644263,-28490.36680788,0.00037047,24]
[392989783,1762200644272,-151.0,0.00037047,31]
[392989784,1762200644282,-274.575425,0.00037047,31]
[392989785,1762200644291,-151.0,0.00037047,31]
[392989786,1762200644300,-151.0,0.00037047,31]
[392989787,1762200644309,-156.663882,0.00037047,31]
[392989788,1762200644319,-151.0,0.00037047,31]
[392989789,1762200644328,-151.731434,0.00037047,31]
[392989790,1762200644338,-152.809766,0.00037047,31]
[392989791,1762200644347,-151.0,0.00037047,31]
[392989792,1762200644355,-151.0,0.00037047,31]
[392989793,1762200644364,-151.0,0.00037047,31]
[392989794,1762200644378,-151.0,0.00037047,31]
[392989795,1762200644387,-151.0,0.00037047,31]
[392989796,1762200644396,-271.152285,0.00037047,31]
[392989797,1762200644407,-151.0,0.00037047,31]
[392989798,1762200644418,-151.0,0.00037047,31]
[392989799,1762200644427,-151.0,0.00037047,31]
[392989800,1762200644436,-151.0,0.00037047,31]
[392989801,1762200644446,-151.0,0.00037047,31]
[392989802,1762200644456,-151.0,0.00037047,31]
[392989803,1762200644465,-151.0,0.00037047,31]
[392989804,1762200644474,-151.0,0.00037047,31]
[392989805,1762200644483,-151.0,0.00037047,31]
[392989806,1762200644492,-151.0,0.00037047,31]
[392989807,1762200644501,-297.532316,0.00037047,31]
[392989808,1762200644511,-151.0,0.00037047,31]
[392989809,1762200644520,-151.0,0.00037047,31]
[392989810,1762200644529,-151.0,0.00037047,31]
[392989811,1762200644538,-151.0,0.00037047,31]
[392989812,1762200644547,-151.0,0.00037047,31]
[392989813,1762200644557,-151.0,0.00037047,31]
[392989814,1762200644568,-151.0,0.00037047,31]
[392989815,1762200644577,-217.107208,0.00037047,31]
[392989816,1762200644586,-151.0,0.00037047,31]
[392989817,1762200644596,-151.0,0.00037047,31]
[392989818,1762200644605,-151.0,0.00037047,31]
[392989819,1762200644614,-151.0,0.00037047,31]
[392989820,1762200644623,-151.0,0.00037047,31]
[392989821,1762200644632,-151.0,0.00037047,31]
[392989822,1762200644641,-151.0,0.00037047,31]
[392989823,1762200644650,-151.0,0.00037047,31]
[392989824,1762200644659,-151.0,0.00037047,31]
[392989825,1762200644669,-151.0,0.00037047,31]
[392989826,1762200644678,-151.0,0.00037047,31]
[392989827,1762200644687,-151.0,0.00037047,31]
[392989828,1762200644696,-151.0,0.00037047,31]
[392989829,1762200644705,-151.0,0.00037047,31]
[392989830,1762200644714,-151.0,0.00037047,15]
[392989831,1762200644723,-151.0,0.00037047,15]
[392989832,1762200644733,-151.0,0.00037047,15]
[392989833,1762200644745,-151.0,0.00037047,15]
[392989834,1762200644754,-268.166299,0.00037047,15]
[392989835,1762200644763,-151.0,0.00037047,31]
[392989836,1762200644772,-151.0,0.00037047,31]
[392989837,1762200644781,-151.0,0.00037047,31]
[392989838,1762200644791,-151.0,0.00037047,31]
[392989839,1762200644800,-151.0,0.00037047,31]
[392989840,1762200644810,-151.0,0.00037047,31]
[392989841,1762200644819,-151.0,0.00037047,31]
[392989842,1762200644828,-151.0,0.00037047,31]
[392989843,1762200644838,-151.0,0.00037047,31]
[392989844,1762200644847,-151.0,0.00037047,31]
[392989845,1762200644855,-151.0,0.00037047,31]
[392989846,1762200644865,-151.0,0.00037047,31]
[392989847,1762200644875,-151.0,0.00037047,31]
[392989848,1762200644884,-277.39309,0.00037047,31]
[392989849,1762200644893,-151.0,0.00037047,31]
[392989850,1762200644902,-151.0,0.00037047,31]
[392989851,1762200644911,-151.0,0.00037047,31]
[392989852,1762200644921,-151.0,0.00037047,31]
[392989853,1762200644931,-151.0,0.00037047,31]
[392989854,1762200644940,-151.0,0.00037047,31]
[392989855,1762200644949,-151.0,0.00037047,31]
[392989856,1762200644957,-151.0,0.00037047,31]
[392989857,1762200644967,-151.0,0.00037047,31]
[392989858,1762200644976,-151.0,0.00037047,31]
[392989859,1762200644986,-151.0,0.00037047,31]
[392989860,1762200644995,-151.0,0.00037047,31]
[392989861,1762200645005,-151.0,0.00037047,31]
[392989862,1762200645014,-151.0,0.00037047,31]
[392989863,1762200645023,-151.0,0.00037047,31]
[392989864,1762200645032,-205.469726,0.00037047,31]
[392989865,1762200645041,-151.0,0.00037047,31]
[392989866,1762200645050,-151.0,0.00037047,31]
[392989867,1762200645062,-151.0,0.00037047,31]
[392989868,1762200645072,-151.0,0.00037047,31]
[392989869,1762200645081,-151.0,0.00037047,31]
[392989870,1762200645091,-151.0,0.00037047,15]
[392989871,1762200645100,-151.0,0.00037047,15]
[392989872,1762200645109,-151.0,0.00037047,15]
[392989873,1762200645118,-151.0,0.00037047,15]
[392989874,1762200645127,-151.0,0.00037047,15]
[392989875,1762200645137,-261.370454,0.00037047,15]
[392989876,1762200645146,-151.0,0.00037047,31]
[392989877,1762200645155,-151.0,0.00037047,31]
[392989878,1762200645164,-151.0,0.00037047,31]
[392989879,1762200645173,-151.0,0.00037047,31]
[392989880,1762200645182,-151.0,0.00037047,31]
[392989881,1762200645192,-151.0,0.00037047,31]
[392989882,1762200645201,-151.0,0.00037047,31]
[392989883,1762200645210,-151.0,0.00037047,31]
[392989884,1762200645219,-151.0,0.00037047,31]
[392989885,1762200645228,-151.0,0.00037047,31]
[392989886,1762200645237,-151.0,0.00037047,31]
[392989887,1762200645246,-151.0,0.00037047,31]
[392989888,1762200645255,-151.0,0.00037047,31]
[392989889,1762200645264,-151.0,0.00037047,31]
[392989890,1762200645273,-151.0,0.00037047,31]
[392989891,1762200645282,-154.050981,0.00037047,31]
[392989892,1762200645291,-231.329742,0.00037047,31]
[392989893,1762200645300,-249.57988,0.00037047,31]
[392989894,1762200645309,-151.0,0.00037047,31]
[392989895,1762200645318,-151.0,0.00037047,31]
[392989896,1762200645328,-151.0,0.00037047,31]
[392989897,1762200645337,-151.0,0.00037047,31]
[392989898,1762200645346,-151.0,0.00037047,31]
[392989899,1762200645355,-151.0,0.00037047,31]
[392989900,1762200645365,-151.0,0.00037047,31]
[392989901,1762200645377,-151.0,0.00037047,31]
[392989902,1762200645386,-151.0,0.00037047,31]
[392989903,1762200645395,-151.0,0.00037047,31]
[392989904,1762200645404,-151.0,0.00037047,31]
[392989905,1762200645415,-289.980844,0.00037047,31]
[392989906,1762200645424,-151.0,0.00037047,31]
[392989907,1762200645433,-151.0,0.00037047,31]
[392989908,1762200645443,-151.0,0.00037047,31]
[392989909,1762200645453,-219.791894,0.00037047,31]
[392989910,1762200645462,-151.0,0.00037047,31]
[392989911,1762200645471,-151.0,0.00037047,31]
[392989913,1762200645481,-151.0,0.00037047,31]
[392989915,1762200645490,-151.0,0.00037047,31]
[392989917,1762200645499,-151.0,0.00037047,31]
[392989919,1762200645508,-151.0,0.00037047,31]
[392989920,1762200645517,-151.0,0.00037047,31]
[392989922,1762200645526,-151.0,0.00037047,31]
[392989923,1762200645535,-151.0,0.00037047,31]
[392989924,1762200645545,-151.0,0.00037047,31]
[392989925,1762200645554,-151.0,0.00037047,31]
[392989926,1762200645563,-151.0,0.00037047,31]
[392989927,1762200645572,-151.0,0.00037047,31]
[392989928,1762200645581,-151.0,0.00037047,31]
[392989929,1762200645590,-151.0,0.00037047,31]
[392989930,1762200645601,-151.0,0.00037047,31]
[392989931,1762200645610,-151.0,0.00037047,31]
[392989932,1762200645619,-151.0,0.00037047,31]
[392989933,1762200645628,-151.0,0.00037047,31]
[392989934,1762200645638,-151.0,0.00037047,31]
[392989935,1762200645647,-253.61314,0.00037047,31]
[392989936,1762200645657,-151.0,0.00037047,31]
[392989937,1762200645667,-151.0,0.00037047,31]
[392989938,1762200645678,-151.0,0.00037047,31]
[392989939,1762200645688,-151.0,0.00037047,31]
[392989940,1762200645697,-151.0,0.00037047,31]
[392989941,1762200645707,-151.0,0.00037047,31]
[392989942,1762200645716,-151.0,0.00037047,31]
[392989943,1762200645725,-258.993616,0.00037047,31]
[392989944,1762200645735,-151.0,0.00037047,31]
[392989945,1762200645744,-151.0,0.00037047,31]
[392989946,1762200645753,-151.0,0.00037047,31]
[392989947,1762200645763,-151.0,0.00037047,31]
[392989948,1762200645772,-180.033927,0.00037047,31]
[392989949,1762200645781,-151.0,0.00037047,31]
[392989950,1762200645791,-151.0,0.00037047,31]
[392989951,1762200645800,-151.0,0.00037047,31]
[392989952,1762200645809,-151.0,0.00037047,31]
[392989953,1762200645967,-151.0,0.00037047,31]
[392989954,1762200645977,-151.0,0.00037047,31]
[392989955,1762200645986,-151.0,0.00037047,31]
[392989956,1762200645995,-151.0,0.00037047,31]
[392989957,1762200646004,-151.0,0.00037047,31]
[392989958,1762200646013,-151.0,0.00037047,31]
[392989959,1762200646022,-240.673441,0.00037047,31]
[392989960,1762200646031,-151.0,0.00037047,31]
[392989961,1762200646040,-151.0,0.00037047,31]
[392989962,1762200646049,-153.915735,0.00037047,31]
[392989963,1762200646058,-154.199714,0.00037047,31]
[392989964,1762200646068,-151.0,0.00037047,31]
[392989965,1762200646077,-255.916062,0.00037047,31]
[392989966,1762200646086,-151.0,0.00037047,31]
[392989967,1762200646095,-151.0,0.00037047,31]
[392989968,1762200646104,-151.0,0.00037047,31]
[392989969,1762200646113,-151.0,0.00037047,31]
[392989970,1762200646122,-151.0,0.00037047,31]
[392989971,1762200646131,-151.0,0.00037047,31]
[392989972,1762200646140,-151.0,0.00037047,31]
[392989973,1762200646149,-151.0,0.00037047,31]
[392989974,1762200646158,-151.0,0.00037047,31]
[392989976,1762200646168,-151.0,0.00037047,31]
[392989978,1762200646176,-151.0,0.00037047,31]
[392989980,1762200646186,-151.0,0.00037047,31]
[392989982,1762200646195,-151.0,0.00037047,31]
[392989984,1762200646206,-151.0,0.00037047,31]
[392989986,1762200646215,-151.0,0.00037047,31]
[392989987,1762200646224,-151.0,0.00037047,31]
[392989988,1762200646234,-284.771448,0.00037047,31]
[392989989,1762200646243,-157.875105,0.00037047,31]
[392989990,1762200646252,-151.0,0.00037047,31]
[392989991,1762200646262,-151.0,0.00037047,31]
[392989992,1762200646271,-151.0,0.00037047,31]
[392989993,1762200646279,-151.0,0.00037047,31]
[392989994,1762200646288,-151.0,0.00037047,31]
[392989995,1762200646298,-151.0,0.00037047,31]
[392989996,1762200646307,-151.0,0.00037047,31]
[392989997,1762200646315,-151.0,0.00037047,31]
[392989998,1762200646324,-151.0,0.00037047,31]
[392989999,1762200646333,-151.0,0.00037047,31]
[392990000,1762200646342,-151.0,0.00037047,31]
[392990001,1762200646351,-151.0,0.00037047,31]
[392990002,1762200646360,-151.0,0.00037047,31]
[392990003,1762200646371,-151.0,0.00037047,31]
[392990004,1762200646383,-151.0,0.00037047,31]
[392990005,1762200646392,-151.0,0.00037047,31]
[392990006,1762200646401,-151.0,0.00037047,31]
[392990007,1762200646410,-151.0,0.00037047,31]
[392990008,1762200646421,-151.0,0.00037047,31]
[392990009,1762200646431,-151.0,0.00037047,31]
[392990010,1762200646447,-151.0,0.00037047,31]
[392990011,1762200646459,-151.0,0.00037047,31]
[392990012,1762200646474,-151.0,0.00037047,31]
[392990013,1762200646485,-151.0,0.00037047,31]
[392990014,1762200646494,-218.979912,0.00037047,31]
[392990015,1762200646503,-151.0,0.00037047,31]
[392990016,1762200646513,-151.0,0.00037047,31]
[392990017,1762200646522,-151.0,0.00037047,31]
[392990018,1762200646532,-300.164076,0.00037047,31]
[392990019,1762200646542,-151.0,0.00037047,31]
[392990020,1762200646551,-157.248362,0.00037047,31]
[392990021,1762200646560,-151.0,0.00037047,31]
[392990022,1762200646570,-151.0,0.00037047,31]